[Event "*** Titled Tuesday 3|2 Blitz"]
[Site "Chess.com"]
[Date "2015.12.01"]
[Round "5"]
[White "Blitzstream"]
[Black "bugsbunny444"]
[Result "0-1"]
[WhiteElo "2392"]
[BlackElo "2353"]
[TimeControl "180+2"]
[EndTime "12:05:39 PST"]
[Termination "bugsbunny444 won by resignation"]

1. d4 {[%clk 0:03:01.9]} 1... e6 {[%clk 0:03:00.7]} 2. e4 {[%clk 0:03:02.5]}
2... d5 {[%clk 0:03:01.7]} 3. Nd2 {[%clk 0:03:04]} 3... Nf6 {[%clk 0:03:02.8]}
4. e5 {[%clk 0:03:05]} 4... Nfd7 {[%clk 0:03:04.5]} 5. c3 {[%clk 0:03:06.2]}
5... c5 {[%clk 0:03:06.2]} 6. Bd3 {[%clk 0:03:07.4]} 6... Nc6 {[%clk 0:03:07.8]}
7. Ngf3 {[%clk 0:03:08.8]} 7... g6 {[%clk 0:03:06.8]} 8. h4 {[%clk 0:03:08.3]}
8... h6 {[%clk 0:03:05.3]} 9. h5 {[%clk 0:03:03.5]} 9... g5 {[%clk 0:03:06.2]}
10. dxc5 {[%clk 0:03:04.6]} 10... Ndxe5 {[%clk 0:02:42.4]} 11. Bb5 {[%clk
0:02:59]} 11... Bd7 {[%clk 0:02:34.2]} 12. Qe2 {[%clk 0:02:48.1]} 12... Qc7
{[%clk 0:02:22.9]} 13. O-O {[%clk 0:01:55.5]} 13... Bxc5 {[%clk 0:02:17.6]} 14.
Nb3 {[%clk 0:01:48.2]} 14... Bd6 {[%clk 0:02:08.9]} 15. Be3 {[%clk 0:01:47.4]}
15... a6 {[%clk 0:01:35.9]} 16. Bxc6 {[%clk 0:01:29.2]} 16... Nxc6 {[%clk
0:01:31.5]} 17. Nbd4 {[%clk 0:01:17.6]} 17... Ne5 {[%clk 0:01:04.1]} 18. Nxe5
{[%clk 0:01:13.4]} 18... Bxe5 {[%clk 0:01:05]} 19. Rfe1 {[%clk 0:01:15.1]} 19...
Bg7 {[%clk 0:00:53.4]} 20. Nf5 {[%clk 0:01:09.7]} 20... O-O {[%clk 0:00:47.6]}
21. Nxg7 {[%clk 0:00:46.2]} 21... Kxg7 {[%clk 0:00:48.8]} 22. Bd4+ {[%clk
0:00:43.6]} 22... f6 {[%clk 0:00:49.2]} 23. Qd3 {[%clk 0:00:44.5]} 23... e5
{[%clk 0:00:25.2]} 24. Qg6+ {[%clk 0:00:44.8]} 24... Kh8 {[%clk 0:00:26.1]} 25.
Qxh6+ {[%clk 0:00:46.4]} 25... Kg8 {[%clk 0:00:27.5]} 26. Qg6+ {[%clk
0:00:47.8]} 26... Kh8 {[%clk 0:00:29]} 27. Qh6+ {[%clk 0:00:24.7]} 27... Kg8
{[%clk 0:00:29.8]} 28. Rxe5 {[%clk 0:00:17.5]} 28... fxe5 {[%clk 0:00:17.4]} 29.
Qg6+ {[%clk 0:00:18.3]} 29... Kh8 {[%clk 0:00:18.3]} 30. Qh6+ {[%clk 0:00:20.2]}
30... Kg8 {[%clk 0:00:19.3]} 31. Qxg5+ {[%clk 0:00:22.1]} 31... Kf7 {[%clk
0:00:10.1]} 32. Bxe5 {[%clk 0:00:21.2]} 32... Qc6 {[%clk 0:00:08.6]} 33. Qg7+
{[%clk 0:00:18.8]} 33... Ke8 {[%clk 0:00:10]} 34. Re1 {[%clk 0:00:17.2]} 34...
Qe6 {[%clk 0:00:06.5]} 35. c4 {[%clk 0:00:18.7]} 35... Rg8 {[%clk 0:00:05.6]}
36. Qh7 {[%clk 0:00:19.8]} 36... d4 {[%clk 0:00:03.9]} 37. Re4 {[%clk
0:00:20.7]} 37... Bc6 {[%clk 0:00:04.4]} 38. Rxd4 {[%clk 0:00:15]} 38... Rxg2+
{[%clk 0:00:04.1]} 39. Kf1 {[%clk 0:00:16.7]} 39... Qxe5 {[%clk 0:00:02.6]} 40.
Qd3 {[%clk 0:00:12.7]} 40... Rg8 {[%clk 0:00:03]} 41. h6 {[%clk 0:00:13.8]}
41... Rf8 {[%clk 0:00:03.2]} 42. h7 {[%clk 0:00:14]} 42... Ke7 {[%clk
0:00:04.4]} 43. Rg4 {[%clk 0:00:12.7]} 43... Rh8 {[%clk 0:00:04.6]} 44. Rg3
{[%clk 0:00:13.6]} 44... Kf7 {[%clk 0:00:04.5]} 45. Qg6+ {[%clk 0:00:13.9]}
45... Ke7 {[%clk 0:00:05.3]} 46. Re3 {[%clk 0:00:15.2]} 46... Qxe3 {[%clk
0:00:06.6]} 47. fxe3 {[%clk 0:00:17.1]} 47... Raf8+ {[%clk 0:00:07.9]} 48. Ke2
{[%clk 0:00:18.7]} 48... Kd8 {[%clk 0:00:03.2]} 49. b4 {[%clk 0:00:17.5]} 49...
Kc8 {[%clk 0:00:04]} 50. a4 {[%clk 0:00:10.3]} 50... Bxa4 {[%clk 0:00:02.7]} 51.
b5 {[%clk 0:00:10.4]} 51... axb5 {[%clk 0:00:04.2]} 52. c5 {[%clk 0:00:11.9]}
52... Re8 {[%clk 0:00:04.2]} 53. c6 {[%clk 0:00:12.7]} 53... bxc6 {[%clk
0:00:03.7]} 54. Qxc6+ {[%clk 0:00:14.6]} 54... Kb8 {[%clk 0:00:05.1]} 55. Qd6+
{[%clk 0:00:16.2]} 55... Kb7 {[%clk 0:00:06.4]} 56. Qd7+ {[%clk 0:00:17.7]}
56... Kb6 {[%clk 0:00:07.5]} 57. Qd6+ {[%clk 0:00:19.4]} 57... Kb7 {[%clk
0:00:06.8]} 58. Qd5+ {[%clk 0:00:20.1]} 58... Kb6 {[%clk 0:00:08.1]} 59. Qd6+
{[%clk 0:00:21.6]} 59... Ka5 {[%clk 0:00:07.9]} 60. Qd2+ {[%clk 0:00:22.7]}
60... b4 {[%clk 0:00:07.3]} 61. Qd5+ {[%clk 0:00:24]} 61... Bb5+ {[%clk
0:00:08.3]} 62. Kf2 {[%clk 0:00:23.6]} 62... Rxh7 {[%clk 0:00:06.4]} 63. Qa2+
{[%clk 0:00:23.9]} 63... Kb6 {[%clk 0:00:06.2]} 64. Qb2 {[%clk 0:00:24.9]} 64...
Rf7+ {[%clk 0:00:05.9]} 65. Ke1 {[%clk 0:00:23.9]} 65... Rf1+ {[%clk 0:00:06.8]}
66. Kd2 {[%clk 0:00:24.7]} 66... Rf2+ {[%clk 0:00:08.5]} 0-1

[Event "*** Titled Tuesday 3|2 Blitz"]
[Site "Chess.com"]
[Date "2015.12.01"]
[Round "5"]
[White "SlovenskiZmaj"]
[Black "alexsuper1987"]
[Result "1-0"]
[WhiteElo "2300"]
[BlackElo "2195"]
[TimeControl "180+2"]
[EndTime "12:06:06 PST"]
[Termination "SlovenskiZmaj won by resignation"]

1. e4 {[%clk 0:03:01.9]} 1... c5 {[%clk 0:03:00.7]} 2. c3 {[%clk 0:02:58.8]}
2... e6 {[%clk 0:03:01.3]} 3. d4 {[%clk 0:02:48.7]} 3... d5 {[%clk 0:03:02.8]}
4. e5 {[%clk 0:02:49]} 4... Qb6 {[%clk 0:03:01.1]} 5. Nf3 {[%clk 0:02:40.1]}
5... Bd7 {[%clk 0:03:01.3]} 6. Be2 {[%clk 0:02:29.9]} 6... Bb5 {[%clk
0:03:02.3]} 7. O-O {[%clk 0:02:30.9]} 7... Bxe2 {[%clk 0:03:02.4]} 8. Qxe2
{[%clk 0:02:29.9]} 8... cxd4 {[%clk 0:03:04.1]} 9. cxd4 {[%clk 0:02:30]} 9...
Ne7 {[%clk 0:03:05.7]} 10. Be3 {[%clk 0:02:28.3]} 10... Nbc6 {[%clk 0:03:05.9]}
11. Nc3 {[%clk 0:02:29.3]} 11... Nf5 {[%clk 0:02:58.5]} 12. Rfd1 {[%clk
0:02:30.3]} 12... Be7 {[%clk 0:02:56.3]} 13. g4 {[%clk 0:02:28.8]} 13... Nxe3
{[%clk 0:02:54.5]} 14. fxe3 {[%clk 0:02:30.7]} 14... O-O {[%clk 0:02:53.9]} 15.
g5 {[%clk 0:02:29.3]} 15... f6 {[%clk 0:02:48.3]} 16. exf6 {[%clk 0:02:24]}
16... gxf6 {[%clk 0:02:49.5]} 17. gxf6 {[%clk 0:02:25]} 17... Rxf6 {[%clk
0:02:48.8]} 18. Kh1 {[%clk 0:02:25.1]} 18... Kh8 {[%clk 0:02:37.4]} 19. Rg1
{[%clk 0:02:24.9]} 19... Raf8 {[%clk 0:02:32.6]} 20. Raf1 {[%clk 0:02:22.4]}
20... Rg8 {[%clk 0:02:09.6]} 21. Rxg8+ {[%clk 0:02:16]} 21... Kxg8 {[%clk
0:02:11.5]} 22. b3 {[%clk 0:02:16.2]} 22... Bb4 {[%clk 0:02:04.6]} 23. Nd1
{[%clk 0:02:14.9]} 23... Qa6 {[%clk 0:01:55.8]} 24. Rg1+ {[%clk 0:02:12]} 24...
Rg6 {[%clk 0:01:52.7]} 25. Qxa6 {[%clk 0:01:53]} 25... Rxg1+ {[%clk 0:01:45.8]}
26. Kxg1 {[%clk 0:01:52.9]} 26... bxa6 {[%clk 0:01:47.7]} 27. Kf2 {[%clk
0:01:43.9]} 27... a5 {[%clk 0:01:48.8]} 28. Ng5 {[%clk 0:01:41.3]} 28... e5
{[%clk 0:01:47.1]} 29. Nf3 {[%clk 0:01:35.5]} 29... exd4 {[%clk 0:01:44.1]} 30.
Nxd4 {[%clk 0:01:37.4]} 30... Nxd4 {[%clk 0:01:44.2]} 31. exd4 {[%clk
0:01:39.3]} 31... Kf7 {[%clk 0:01:43.9]} 32. Ke3 {[%clk 0:01:33.3]} 32... Ke6
{[%clk 0:01:39.8]} 33. Nf2 {[%clk 0:01:33.4]} 33... Bd6 {[%clk 0:01:37.9]} 34.
h3 {[%clk 0:01:34]} 34... Kf5 {[%clk 0:01:35.4]} 35. Kf3 {[%clk 0:01:30.6]}
35... Kg5 {[%clk 0:01:21.6]} 36. Ng4 {[%clk 0:01:26.5]} 36... Bf4 {[%clk
0:01:03.1]} 37. Nf2 {[%clk 0:01:08]} 37... Bd2 {[%clk 0:00:44.8]} 38. Ke2 {[%clk
0:00:39.6]} 38... Bb4 {[%clk 0:00:34.2]} 39. Ng4 {[%clk 0:00:28.6]} 39... Kh4
{[%clk 0:00:27.8]} 40. Nf6 {[%clk 0:00:27.7]} 40... h5 {[%clk 0:00:19.1]} 41.
Nxd5 {[%clk 0:00:14.5]} 41... Bd6 {[%clk 0:00:16.3]} 42. Nf6 {[%clk 0:00:12.5]}
42... Be7 {[%clk 0:00:14.6]} 43. Ne4 {[%clk 0:00:09.3]} 43... Kxh3 {[%clk
0:00:14.3]} 44. Kf3 {[%clk 0:00:09.8]} 44... Kh4 {[%clk 0:00:13.6]} 45. d5
{[%clk 0:00:10]} 45... Bd8 {[%clk 0:00:12.2]} 46. d6 {[%clk 0:00:10.9]} 46...
Kh3 {[%clk 0:00:11.8]} 47. d7 {[%clk 0:00:04.6]} 47... h4 {[%clk 0:00:13.1]} 48.
Nc5 {[%clk 0:00:06]} 48... Kh2 {[%clk 0:00:14.1]} 49. Ne6 {[%clk 0:00:07.6]}
49... Be7 {[%clk 0:00:14.7]} 50. d8=Q {[%clk 0:00:07.7]} 50... Bxd8 {[%clk
0:00:15.9]} 51. Nxd8 {[%clk 0:00:09.6]} 51... h3 {[%clk 0:00:14]} 52. Kf2 {[%clk
0:00:05.9]} 52... Kh1 {[%clk 0:00:15.2]} 53. Ne6 {[%clk 0:00:05.9]} 53... a4
{[%clk 0:00:16.2]} 54. Nd4 {[%clk 0:00:03.6]} 54... axb3 {[%clk 0:00:15.8]} 55.
axb3 {[%clk 0:00:05.5]} 55... a5 {[%clk 0:00:17.1]} 56. Ne2 {[%clk 0:00:06.4]}
56... Kh2 {[%clk 0:00:17.9]} 57. Nf4 {[%clk 0:00:06.7]} 57... Kh1 {[%clk
0:00:08.5]} 58. Nxh3 {[%clk 0:00:07.4]} 58... Kh2 {[%clk 0:00:10.4]} 59. Nf4
{[%clk 0:00:09.1]} 59... Kh1 {[%clk 0:00:12]} 60. Nd5 {[%clk 0:00:10.1]} 60...
Kh2 {[%clk 0:00:12.6]} 61. Ke3 {[%clk 0:00:10]} 61... Kg3 {[%clk 0:00:13.8]} 62.
Kd4 {[%clk 0:00:11.5]} 62... Kf3 {[%clk 0:00:14.8]} 63. Kc5 {[%clk 0:00:13]}
63... Ke4 {[%clk 0:00:15.6]} 64. Nb6 {[%clk 0:00:06.5]} 64... Kd3 {[%clk
0:00:13.4]} 65. Kb5 {[%clk 0:00:08]} 65... Kc3 {[%clk 0:00:13.9]} 66. Ka4 {[%clk
0:00:09.6]} 66... Kb2 {[%clk 0:00:14]} 67. Nc4+ {[%clk 0:00:11.5]} 67... Kc3
{[%clk 0:00:15.3]} 68. Nxa5 {[%clk 0:00:13.4]} 68... Kd4 {[%clk 0:00:16]} 69. b4
{[%clk 0:00:15]} 69... Kd5 {[%clk 0:00:17.6]} 70. Kb5 {[%clk 0:00:15.9]} 70...
Kd6 {[%clk 0:00:19.5]} 71. Kb6 {[%clk 0:00:17.4]} 1-0

[Event "*** Titled Tuesday 3|2 Blitz"]
[Site "Chess.com"]
[Date "2015.12.01"]
[Round "5"]
[White "Maitreia"]
[Black "AndroQueen"]
[Result "1/2-1/2"]
[WhiteElo "2449"]
[BlackElo "2283"]
[TimeControl "180+2"]
[EndTime "12:06:15 PST"]
[Termination "Game drawn by repetition"]

1. c4 {[%clk 0:03:00.8]} 1... c5 {[%clk 0:02:58.4]} 2. g3 {[%clk 0:03:02]} 2...
g6 {[%clk 0:02:58.7]} 3. Bg2 {[%clk 0:03:03.3]} 3... Bg7 {[%clk 0:03:00.2]} 4.
Nc3 {[%clk 0:03:04.9]} 4... Nc6 {[%clk 0:03:01.3]} 5. Nf3 {[%clk 0:03:06.2]}
5... d6 {[%clk 0:03:01.8]} 6. d3 {[%clk 0:03:05.7]} 6... Bf5 {[%clk 0:03:01.4]}
7. O-O {[%clk 0:03:03.6]} 7... Qd7 {[%clk 0:03:02.5]} 8. Nd5 {[%clk 0:03:00.6]}
8... Nf6 {[%clk 0:03:02.1]} 9. Nxf6+ {[%clk 0:02:56.5]} 9... Bxf6 {[%clk
0:03:03.1]} 10. Rb1 {[%clk 0:02:42.5]} 10... Bh3 {[%clk 0:02:58.7]} 11. Bxh3
{[%clk 0:02:41.1]} 11... Qxh3 {[%clk 0:02:59.6]} 12. a3 {[%clk 0:02:38.3]} 12...
h5 {[%clk 0:02:53.7]} 13. Bg5 {[%clk 0:02:20.5]} 13... Bxg5 {[%clk 0:02:42.8]}
14. Nxg5 {[%clk 0:02:22.4]} 14... Qg4 {[%clk 0:02:31.6]} 15. h4 {[%clk
0:02:20.4]} 15... O-O {[%clk 0:02:24.1]} 16. e3 {[%clk 0:02:17.4]} 16... Qf5
{[%clk 0:02:19.4]} 17. b4 {[%clk 0:01:52.5]} 17... b6 {[%clk 0:02:15.9]} 18. Qf3
{[%clk 0:01:47.4]} 18... Qd7 {[%clk 0:01:56.2]} 19. Rfd1 {[%clk 0:01:43]} 19...
Ne5 {[%clk 0:01:55.5]} 20. Qg2 {[%clk 0:01:44]} 20... Qa4 {[%clk 0:01:42.8]} 21.
bxc5 {[%clk 0:01:29.4]} 21... dxc5 {[%clk 0:01:14.2]} 22. Qe4 {[%clk 0:01:23.8]}
22... Ng4 {[%clk 0:01:05.3]} 23. Qxe7 {[%clk 0:01:04.3]} 23... Qxa3 {[%clk
0:01:04]} 24. d4 {[%clk 0:00:47]} 24... Rae8 {[%clk 0:01:00.9]} 25. Qd6 {[%clk
0:00:43]} 25... Qa2 {[%clk 0:00:51.8]} 26. Nh3 {[%clk 0:00:24.1]} 26... Qxc4
{[%clk 0:00:48]} 27. dxc5 {[%clk 0:00:23]} 27... bxc5 {[%clk 0:00:44.5]} 28.
Rbc1 {[%clk 0:00:24.2]} 28... Qe2 {[%clk 0:00:40.9]} 29. Rd2 {[%clk 0:00:20.1]}
29... Qf3 {[%clk 0:00:37.1]} 30. Ng5 {[%clk 0:00:19.2]} 30... Qf5 {[%clk
0:00:29.7]} 31. Rxc5 {[%clk 0:00:18.5]} 31... Qb1+ {[%clk 0:00:28]} 32. Rd1
{[%clk 0:00:19.3]} 32... Qa2 {[%clk 0:00:29.3]} 33. Qd2 {[%clk 0:00:20.4]} 33...
Qa6 {[%clk 0:00:17.4]} 34. Rd5 {[%clk 0:00:16.9]} 34... Qf6 {[%clk 0:00:18]} 35.
Rd4 {[%clk 0:00:15.5]} 35... Rb8 {[%clk 0:00:12.6]} 36. Rf4 {[%clk 0:00:16.3]}
36... Qg7 {[%clk 0:00:12.8]} 37. Qd4 {[%clk 0:00:16.4]} 37... Qxd4 {[%clk
0:00:09.8]} 38. Rfxd4 {[%clk 0:00:18.3]} 38... Ne5 {[%clk 0:00:07]} 39. Kg2
{[%clk 0:00:18.5]} 39... Kg7 {[%clk 0:00:07]} 40. Rd5 {[%clk 0:00:19.4]} 40...
Nc6 {[%clk 0:00:07.9]} 41. Rd6 {[%clk 0:00:19.8]} 41... Rb6 {[%clk 0:00:07.5]}
42. Ra1 {[%clk 0:00:18.1]} 42... Rfb8 {[%clk 0:00:05.7]} 43. Rd7 {[%clk
0:00:16.4]} 43... R8b7 {[%clk 0:00:07.1]} 44. Rxb7 {[%clk 0:00:16.4]} 44... Rxb7
{[%clk 0:00:08.4]} 45. Ra6 {[%clk 0:00:17.5]} 45... Nb4 {[%clk 0:00:09]} 46. Ra4
{[%clk 0:00:19.1]} 46... a6 {[%clk 0:00:07.4]} 47. Ne4 {[%clk 0:00:20.6]} 47...
Rb6 {[%clk 0:00:08.5]} 48. Nc5 {[%clk 0:00:21.8]} 48... Kg8 {[%clk 0:00:06]} 49.
Kf3 {[%clk 0:00:23.3]} 49... Rb5 {[%clk 0:00:04.4]} 50. Nxa6 {[%clk 0:00:23.8]}
50... Nxa6 {[%clk 0:00:05.6]} 51. Rxa6 {[%clk 0:00:25.7]} 51... Kg7 {[%clk
0:00:07.2]} 52. Ra7 {[%clk 0:00:25.7]} 52... Rb2 {[%clk 0:00:08.5]} 53. Ra1
{[%clk 0:00:25.4]} 53... Kf6 {[%clk 0:00:09.8]} 54. Re1 {[%clk 0:00:27]} 54...
Ke6 {[%clk 0:00:09.6]} 55. Re2 {[%clk 0:00:28.5]} 55... Rb1 {[%clk 0:00:10.6]}
56. Ra2 {[%clk 0:00:29.9]} 56... Kf6 {[%clk 0:00:11.5]} 57. Kf4 {[%clk
0:00:31.1]} 57... Kg7 {[%clk 0:00:10.9]} 58. f3 {[%clk 0:00:31.8]} 58... Rg1
{[%clk 0:00:10.6]} 59. Ra7 {[%clk 0:00:32.3]} 59... Rf1 {[%clk 0:00:11.6]} 60.
e4 {[%clk 0:00:33.8]} 60... Kf6 {[%clk 0:00:09.9]} 61. Ra6+ {[%clk 0:00:34.5]}
61... Kg7 {[%clk 0:00:10.2]} 62. Ra7 {[%clk 0:00:36.4]} 62... Kf6 {[%clk
0:00:10.9]} 63. e5+ {[%clk 0:00:37.9]} 63... Ke6 {[%clk 0:00:12.3]} 64. Ra6+
{[%clk 0:00:38.2]} 64... Ke7 {[%clk 0:00:13.8]} 65. Ra3 {[%clk 0:00:36.3]} 65...
Ke6 {[%clk 0:00:14.5]} 66. Ra6+ {[%clk 0:00:34.9]} 66... Ke7 {[%clk 0:00:15.4]}
67. g4 {[%clk 0:00:20.4]} 67... hxg4 {[%clk 0:00:15.7]} 68. Kxg4 {[%clk
0:00:22.3]} 68... Rg1+ {[%clk 0:00:16.1]} 69. Kf4 {[%clk 0:00:22.5]} 69... Rh1
{[%clk 0:00:17.4]} 70. Ra7+ {[%clk 0:00:22.4]} 70... Ke6 {[%clk 0:00:18.7]} 71.
Ra6+ {[%clk 0:00:23.6]} 71... Ke7 {[%clk 0:00:20.2]} 72. Kg3 {[%clk 0:00:23.5]}
72... Rg1+ {[%clk 0:00:20.5]} 73. Kf2 {[%clk 0:00:24]} 73... Rh1 {[%clk
0:00:21.7]} 74. Kg3 {[%clk 0:00:20]} 74... Rg1+ {[%clk 0:00:22.7]} 75. Kf4
{[%clk 0:00:20.4]} 75... Rh1 {[%clk 0:00:22.3]} 1/2-1/2

[Event "*** Titled Tuesday 3|2 Blitz"]
[Site "Chess.com"]
[Date "2015.12.01"]
[Round "6"]
[White "riconaipe"]
[Black "Tirantes"]
[Result "0-1"]
[WhiteElo "2278"]
[BlackElo "2227"]
[TimeControl "180+2"]
[EndTime "12:10:07 PST"]
[Termination "Tirantes won by resignation"]

1. d4 {[%clk 0:03:01.9]} 1... d5 {[%clk 0:02:59.2]} 2. c4 {[%clk 0:03:02.1]}
2... e6 {[%clk 0:02:59.4]} 3. Nc3 {[%clk 0:03:02]} 3... Be7 {[%clk 0:02:59.4]}
4. Bf4 {[%clk 0:03:00.7]} 4... Nf6 {[%clk 0:02:58.2]} 5. e3 {[%clk 0:03:00.5]}
5... O-O {[%clk 0:02:57.5]} 6. Nf3 {[%clk 0:03:01.4]} 6... c5 {[%clk 0:02:56.2]}
7. cxd5 {[%clk 0:03:00]} 7... cxd4 {[%clk 0:02:47.2]} 8. Nxd4 {[%clk 0:02:54.1]}
8... Nxd5 {[%clk 0:02:43.1]} 9. Nxd5 {[%clk 0:02:51.3]} 9... Qxd5 {[%clk
0:02:37.5]} 10. Rc1 {[%clk 0:02:45.6]} 10... e5 {[%clk 0:02:28.2]} 11. Nf5
{[%clk 0:02:26.5]} 11... Bb4+ {[%clk 0:02:15.5]} 12. Ke2 {[%clk 0:02:25.6]}
12... Qxd1+ {[%clk 0:02:08.7]} 13. Rxd1 {[%clk 0:02:26.1]} 13... exf4 {[%clk
0:02:06.4]} 0-1

[Event "*** Titled Tuesday 3|2 Blitz"]
[Site "Chess.com"]
[Date "2015.12.01"]
[Round "6"]
[White "olomi007"]
[Black "MITerryble"]
[Result "0-1"]
[WhiteElo "2432"]
[BlackElo "2607"]
[TimeControl "180+2"]
[EndTime "12:10:19 PST"]
[Termination "MITerryble won by resignation"]

1. e4 {[%clk 0:03:01.9]} 1... e6 {[%clk 0:03:01.1]} 2. d4 {[%clk 0:03:02.8]}
2... d5 {[%clk 0:03:02.5]} 3. Nd2 {[%clk 0:03:04]} 3... Be7 {[%clk 0:03:03.1]}
4. e5 {[%clk 0:03:04.5]} 4... c5 {[%clk 0:03:03.1]} 5. Qg4 {[%clk 0:03:05.5]}
5... Kf8 {[%clk 0:03:03.9]} 6. dxc5 {[%clk 0:03:06.8]} 6... Nc6 {[%clk
0:03:04.6]} 7. Qe2 {[%clk 0:03:07.7]} 7... Bxc5 {[%clk 0:03:02.5]} 8. Ngf3
{[%clk 0:03:08.7]} 8... Nh6 {[%clk 0:02:59.5]} 9. g3 {[%clk 0:03:07.5]} 9... Ng4
{[%clk 0:02:57]} 10. Nb3 {[%clk 0:02:27.5]} 10... Bxf2+ {[%clk 0:02:57.3]} 11.
Kd1 {[%clk 0:02:27.6]} 11... Bb6 {[%clk 0:02:57.4]} 12. Nfd4 {[%clk 0:02:18]}
12... Ngxe5 {[%clk 0:02:51.6]} 13. Be3 {[%clk 0:02:09.2]} 13... Nc4 {[%clk
0:02:51.6]} 14. Bg2 {[%clk 0:02:01.1]} 14... Nxe3+ {[%clk 0:02:47.2]} 15. Qxe3
{[%clk 0:02:02.4]} 15... Qf6 {[%clk 0:02:48.4]} 16. c3 {[%clk 0:01:56]} 16... e5
{[%clk 0:02:49.6]} 17. Rf1 {[%clk 0:01:50.6]} 17... exd4 {[%clk 0:02:50.7]} 0-1

[Event "*** Titled Tuesday 3|2 Blitz"]
[Site "Chess.com"]
[Date "2015.12.01"]
[Round "6"]
[White "AleksandrNevski"]
[Black "chessloveyou"]
[Result "1-0"]
[WhiteElo "2351"]
[BlackElo "2133"]
[TimeControl "180+2"]
[EndTime "12:11:53 PST"]
[Termination "AleksandrNevski won by resignation"]

1. Nf3 {[%clk 0:03:01.9]} 1... Nf6 {[%clk 0:03:00.3]} 2. b3 {[%clk 0:03:03.2]}
2... e6 {[%clk 0:03:00.1]} 3. Bb2 {[%clk 0:03:04.5]} 3... Be7 {[%clk 0:03:01]}
4. c4 {[%clk 0:03:06]} 4... O-O {[%clk 0:03:02]} 5. g3 {[%clk 0:03:07.5]} 5...
d5 {[%clk 0:03:02.9]} 6. Bg2 {[%clk 0:03:08.9]} 6... dxc4 {[%clk 0:03:04]} 7.
bxc4 {[%clk 0:03:08.2]} 7... c6 {[%clk 0:03:05]} 8. O-O {[%clk 0:03:08.5]} 8...
Nbd7 {[%clk 0:03:05.5]} 9. Qc2 {[%clk 0:03:08.3]} 9... Re8 {[%clk 0:03:00.4]}
10. d4 {[%clk 0:03:07]} 10... b6 {[%clk 0:02:58.4]} 11. e4 {[%clk 0:03:07.2]}
11... Bb7 {[%clk 0:02:58.5]} 12. e5 {[%clk 0:03:08.3]} 12... Nh5 {[%clk
0:02:55.2]} 13. Nc3 {[%clk 0:02:59.9]} 13... g6 {[%clk 0:02:51.6]} 14. Rad1
{[%clk 0:02:56.7]} 14... Ng7 {[%clk 0:02:40.8]} 15. Ne4 {[%clk 0:02:56.3]} 15...
h6 {[%clk 0:02:39.8]} 16. Qc1 {[%clk 0:02:38.9]} 16... Kh7 {[%clk 0:02:38.1]}
17. Qf4 {[%clk 0:02:38.7]} 17... f5 {[%clk 0:02:34.1]} 18. exf6 {[%clk
0:02:34.9]} 18... Bxf6 {[%clk 0:02:35.2]} 19. Ne5 {[%clk 0:02:31.2]} 19... Bxe5
{[%clk 0:02:33.3]} 20. dxe5 {[%clk 0:02:31.4]} 20... Rf8 {[%clk 0:02:33.2]} 21.
Nf6+ {[%clk 0:02:11.8]} 21... Rxf6 {[%clk 0:01:33.8]} 22. exf6 {[%clk
0:02:11.9]} 22... Nh5 {[%clk 0:01:34.6]} 23. Qd6 {[%clk 0:02:09.6]} 1-0

[Event "*** Titled Tuesday 3|2 Blitz"]
[Site "Chess.com"]
[Date "2015.12.01"]
[Round "6"]
[White "Konavets"]
[Black "NguyenDucHoa"]
[Result "1-0"]
[WhiteElo "2539"]
[BlackElo "2357"]
[TimeControl "180+2"]
[EndTime "12:12:23 PST"]
[Termination "Konavets won by resignation"]

1. e4 {[%clk 0:03:01.9]} 1... c5 {[%clk 0:03:00.5]} 2. Nf3 {[%clk 0:03:02.4]}
2... e6 {[%clk 0:03:02]} 3. d4 {[%clk 0:03:03.4]} 3... cxd4 {[%clk 0:03:03.9]}
4. Bg5 {[%clk 0:03:04.5]} 4... f6 {[%clk 0:03:00.5]} 5. Bh4 {[%clk 0:03:05.5]}
5... e5 {[%clk 0:02:57.7]} 6. c3 {[%clk 0:03:06.4]} 6... Qb6 {[%clk 0:02:49.5]}
7. cxd4 {[%clk 0:03:06.8]} 7... Qxb2 {[%clk 0:02:50.6]} 8. Bc4 {[%clk
0:03:00.7]} 8... Bb4+ {[%clk 0:02:30.3]} 9. Nbd2 {[%clk 0:03:00.4]} 9... Bxd2+
{[%clk 0:02:31]} 10. Nxd2 {[%clk 0:03:02]} 10... Qxd4 {[%clk 0:02:31.4]} 11. O-O
{[%clk 0:03:02.7]} 11... Nc6 {[%clk 0:02:21.1]} 12. Qb3 {[%clk 0:03:02.6]} 12...
Na5 {[%clk 0:02:19.6]} 13. Qg3 {[%clk 0:03:01.6]} 13... g5 {[%clk 0:01:21.3]}
14. Bxg5 {[%clk 0:02:48.5]} 14... fxg5 {[%clk 0:01:16.9]} 15. Qxg5 {[%clk
0:02:45.2]} 15... Ne7 {[%clk 0:01:15.4]} 16. Bf7+ {[%clk 0:02:02.4]} 16... Kxf7
{[%clk 0:01:09.9]} 17. Nf3 {[%clk 0:02:03.5]} 17... Qxe4 {[%clk 0:00:51.4]} 18.
Nxe5+ {[%clk 0:02:02.9]} 18... Kf8 {[%clk 0:00:52.1]} 19. Qf6+ {[%clk
0:02:03.1]} 1-0